[Event "*** Titled Tuesday 3|2 Blitz"]
[Site "Chess.com"]
[Date "2016.03.01"]
[Round "5"]
[White "Titus369"]
[Black "Gau_truc_lon"]
[Result "1-0"]
[WhiteElo "2279"]
[BlackElo "2138"]
[TimeControl "180+2"]
[EndTime "17:55:05 PST"]
[Termination "Titus369 won by resignation"]

1. e4 {[%clk 0:03:01.9]} 1... e5 {[%clk 0:02:59.8]} 2. Nf3 {[%clk 0:03:02.6]}
2... Nc6 {[%clk 0:03:01.3]} 3. Bb5 {[%clk 0:03:02.8]} 3... a6 {[%clk 0:03:02.3]}
4. Ba4 {[%clk 0:03:03.5]} 4... Nf6 {[%clk 0:03:03.8]} 5. O-O {[%clk 0:03:04.5]}
5... Nxe4 {[%clk 0:03:05.1]} 6. Re1 {[%clk 0:03:04.6]} 6... Nc5 {[%clk
0:03:05.7]} 7. Bxc6 {[%clk 0:03:04.6]} 7... dxc6 {[%clk 0:03:07.1]} 8. d4 {[%clk
0:03:04.4]} 8... Ne6 {[%clk 0:03:06.2]} 9. Nxe5 {[%clk 0:03:02.7]} 9... Be7
{[%clk 0:03:05.1]} 10. c3 {[%clk 0:03:02.7]} 10... O-O {[%clk 0:03:05.6]} 11.
Nf3 {[%clk 0:03:03.2]} 11... Re8 {[%clk 0:02:54.1]} 12. Be3 {[%clk 0:03:01.6]}
12... Nf8 {[%clk 0:02:29.6]} 13. Nbd2 {[%clk 0:03:00.9]} 13... Nd7 {[%clk
0:02:30.4]} 14. Nf1 {[%clk 0:03:01.4]} 14... Nf6 {[%clk 0:02:31.3]} 15. Ng3
{[%clk 0:03:02.2]} 15... Ng4 {[%clk 0:02:27.2]} 16. Bf4 {[%clk 0:02:52.2]} 16...
Be6 {[%clk 0:02:27]} 17. h3 {[%clk 0:02:52.7]} 17... Nf6 {[%clk 0:02:27.4]} 18.
Ng5 {[%clk 0:02:49]} 18... Bd5 {[%clk 0:02:26.4]} 19. Be5 {[%clk 0:02:48.3]}
19... h6 {[%clk 0:02:23.2]} 20. Nf3 {[%clk 0:02:48.1]} 20... c5 {[%clk
0:02:00.6]} 21. Nf5 {[%clk 0:02:43.2]} 21... cxd4 {[%clk 0:01:52.4]} 22. cxd4
{[%clk 0:02:41.4]} 22... Bf8 {[%clk 0:01:48]} 23. Nh2 {[%clk 0:02:33]} 23... g6
{[%clk 0:01:31.1]} 24. Ne3 {[%clk 0:02:27.1]} 24... Bc6 {[%clk 0:01:32.4]} 25.
Nhg4 {[%clk 0:02:17.9]} 25... Nxg4 {[%clk 0:01:32.7]} 26. Qxg4 {[%clk
0:02:19.8]} 26... Rc8 {[%clk 0:01:07.2]} 27. a3 {[%clk 0:02:10.1]} 27... Qd7
{[%clk 0:01:06.2]} 28. Qf4 {[%clk 0:02:00.8]} 28... Bg7 {[%clk 0:00:58.6]} 29.
Bxg7 {[%clk 0:01:55.5]} 29... Kxg7 {[%clk 0:01:00.5]} 30. Ng4 {[%clk 0:01:55]}
30... Rxe1+ {[%clk 0:01:00.4]} 31. Rxe1 {[%clk 0:01:55.2]} 31... Rh8 {[%clk
0:01:02.3]} 32. Qe5+ {[%clk 0:01:52.5]} 1-0

[Event "*** Titled Tuesday 3|2 Blitz"]
[Site "Chess.com"]
[Date "2016.03.01"]
[Round "5"]
[White "TheMagician"]
[Black "ethylalcohol"]
[Result "1-0"]
[WhiteElo "2142"]
[BlackElo "1722"]
[TimeControl "180+2"]
[EndTime "17:55:22 PST"]
[Termination "TheMagician won on time"]

1. c4 {[%clk 0:03:01.9]} 1... e5 {[%clk 0:02:59.1]} 2. Nc3 {[%clk 0:03:02.7]}
2... Nf6 {[%clk 0:02:59.9]} 3. g3 {[%clk 0:03:04.1]} 3... Bc5 {[%clk 0:02:52.7]}
4. Bg2 {[%clk 0:03:04.5]} 4... O-O {[%clk 0:02:53.1]} 5. e3 {[%clk 0:03:04.8]}
5... c6 {[%clk 0:02:43.8]} 6. Nge2 {[%clk 0:03:06.1]} 6... d5 {[%clk 0:02:40.9]}
7. d4 {[%clk 0:03:07.2]} 7... exd4 {[%clk 0:02:37.6]} 8. exd4 {[%clk 0:03:08.5]}
8... Bb4 {[%clk 0:02:18.6]} 9. cxd5 {[%clk 0:03:09.6]} 9... Nxd5 {[%clk
0:02:16.8]} 10. O-O {[%clk 0:03:10.6]} 10... Bg4 {[%clk 0:02:07.2]} 11. Qb3
{[%clk 0:03:00.9]} 11... Na6 {[%clk 0:01:38.8]} 12. Nxd5 {[%clk 0:02:56.6]}
12... cxd5 {[%clk 0:01:36.5]} 13. Nf4 {[%clk 0:02:51.9]} 13... Qa5 {[%clk
0:00:54.6]} 14. a3 {[%clk 0:02:29.8]} 14... Rad8 {[%clk 0:00:25.2]} 15. Be3
{[%clk 0:02:09.3]} 15... Bd6 {[%clk 0:00:13.9]} 16. Qxd5 {[%clk 0:01:57.4]}
16... Qb6 {[%clk 0:00:07]} 17. Qxb7 {[%clk 0:01:55.4]} 17... Rb8 {[%clk
0:00:02.8]} 18. Qxb6 {[%clk 0:01:55.1]} 18... Rxb6 {[%clk 0:00:04.2]} 19. b4
{[%clk 0:01:53.7]} 19... Nc7 {[%clk 0:00:03.2]} 20. Nd5 {[%clk 0:01:49.7]} 20...
Nxd5 {[%clk 0:00:03.4]} 21. Bxd5 {[%clk 0:01:50.6]} 1-0

[Event "*** Titled Tuesday 3|2 Blitz"]
[Site "Chess.com"]
[Date "2016.03.01"]
[Round "5"]
[White "evgenyermolaev"]
[Black "chesstatour"]
[Result "1-0"]
[WhiteElo "2095"]
[BlackElo "1994"]
[TimeControl "180+2"]
[EndTime "17:55:27 PST"]
[Termination "evgenyermolaev won on time"]

1. e4 {[%clk 0:03:01.9]} 1... c6 {[%clk 0:02:59.7]} 2. Nf3 {[%clk 0:03:02.2]}
2... d5 {[%clk 0:02:58.7]} 3. Nc3 {[%clk 0:03:03.2]} 3... dxe4 {[%clk
0:02:56.2]} 4. Nxe4 {[%clk 0:03:03.7]} 4... Nf6 {[%clk 0:02:57.7]} 5. Nxf6+
{[%clk 0:03:04.6]} 5... gxf6 {[%clk 0:02:57.9]} 6. d4 {[%clk 0:03:05.4]} 6...
Bg4 {[%clk 0:02:56.6]} 7. Bf4 {[%clk 0:03:03.9]} 7... e6 {[%clk 0:02:57.2]} 8.
Be2 {[%clk 0:03:03.3]} 8... Bd6 {[%clk 0:02:57.9]} 9. Qd2 {[%clk 0:03:03.4]}
9... Qc7 {[%clk 0:02:58.1]} 10. Bxd6 {[%clk 0:03:03.1]} 10... Qxd6 {[%clk
0:03:00]} 11. O-O-O {[%clk 0:03:04]} 11... Nd7 {[%clk 0:03:01.1]} 12. h3 {[%clk
0:03:03.4]} 12... Bh5 {[%clk 0:03:01.6]} 13. Kb1 {[%clk 0:02:58]} 13... Bg6
{[%clk 0:02:53.6]} 14. Bd3 {[%clk 0:02:57.1]} 14... O-O-O {[%clk 0:02:51.8]} 15.
h4 {[%clk 0:02:58]} 15... Nb6 {[%clk 0:02:39.6]} 16. h5 {[%clk 0:02:57.5]} 16...
Bxd3 {[%clk 0:02:38.9]} 17. Qxd3 {[%clk 0:02:58.4]} 17... h6 {[%clk 0:02:28.4]}
18. g3 {[%clk 0:02:57.9]} 18... Qd5 {[%clk 0:02:22.8]} 19. b3 {[%clk 0:02:57.4]}
19... Kb8 {[%clk 0:01:54.1]} 20. c4 {[%clk 0:02:58]} 20... Qd7 {[%clk
0:01:40.5]} 21. Qe3 {[%clk 0:02:58.5]} 21... Qc7 {[%clk 0:01:20.9]} 22. Rh4
{[%clk 0:02:55.5]} 22... e5 {[%clk 0:01:01.6]} 23. dxe5 {[%clk 0:02:48.9]} 23...
Rxd1+ {[%clk 0:00:58.9]} 24. Kc2 {[%clk 0:02:44.2]} 24... Rhd8 {[%clk
0:00:48.2]} 25. Qxh6 {[%clk 0:02:41.4]} 25... fxe5 {[%clk 0:00:39.8]} 26. Qe3
{[%clk 0:02:41.8]} 26... f5 {[%clk 0:00:36.5]} 27. Nxe5 {[%clk 0:02:41.8]} 27...
R8d2+ {[%clk 0:00:27.2]} 28. Kc3 {[%clk 0:02:42.8]} 28... Nd5+ {[%clk
0:00:13.8]} 29. cxd5 {[%clk 0:02:36.1]} 29... Qa5+ {[%clk 0:00:06]} 30. Rb4
{[%clk 0:02:19.9]} 30... cxd5 {[%clk 0:00:02.6]} 31. Nc6+ {[%clk 0:02:19.1]} 1-0

[Event "*** Titled Tuesday 3|2 Blitz"]
[Site "Chess.com"]
[Date "2016.03.01"]
[Round "5"]
[White "Tesla17"]
[Black "Quiet_Desperation"]
[Result "0-1"]
[WhiteElo "2274"]
[BlackElo "2239"]
[TimeControl "180+2"]
[EndTime "17:55:40 PST"]
[Termination "Quiet_Desperation won by checkmate"]

1. d4 {[%clk 0:03:01.9]} 1... Nf6 {[%clk 0:02:57.7]} 2. c4 {[%clk 0:03:03.2]}
2... e6 {[%clk 0:02:58.5]} 3. Nc3 {[%clk 0:03:04.5]} 3... Bb4 {[%clk 0:02:59.6]}
4. e3 {[%clk 0:03:05.8]} 4... b6 {[%clk 0:03:00.4]} 5. Ne2 {[%clk 0:03:05.9]}
5... Ba6 {[%clk 0:03:00.6]} 6. a3 {[%clk 0:03:06.7]} 6... Bxc3+ {[%clk
0:03:01.2]} 7. Nxc3 {[%clk 0:03:08]} 7... d5 {[%clk 0:03:02.3]} 8. Qf3 {[%clk
0:03:09.1]} 8... O-O {[%clk 0:02:59.9]} 9. b3 {[%clk 0:02:57.5]} 9... c6 {[%clk
0:02:52.2]} 10. Bd3 {[%clk 0:02:53.7]} 10... Nbd7 {[%clk 0:02:51.9]} 11. g4
{[%clk 0:02:50.8]} 11... e5 {[%clk 0:02:48]} 12. Qg3 {[%clk 0:02:44.3]} 12...
exd4 {[%clk 0:02:47.3]} 13. exd4 {[%clk 0:02:45.1]} 13... Re8+ {[%clk
0:02:48.7]} 14. Be3 {[%clk 0:02:44.5]} 14... dxc4 {[%clk 0:02:49.3]} 15. bxc4
{[%clk 0:02:44.1]} 15... Nd5 {[%clk 0:02:46]} 16. Bxh7+ {[%clk 0:02:30.4]} 16...
Kxh7 {[%clk 0:02:42.6]} 17. cxd5 {[%clk 0:02:31.5]} 17... Nf6 {[%clk 0:02:38.2]}
18. d6 {[%clk 0:02:01.4]} 18... Bc4 {[%clk 0:02:23.4]} 19. h4 {[%clk 0:01:58.7]}
19... Nd5 {[%clk 0:02:15.9]} 20. Nxd5 {[%clk 0:01:52.2]} 20... Bxd5 {[%clk
0:02:16.9]} 21. Rh3 {[%clk 0:01:52.1]} 21... Qd7 {[%clk 0:02:12.5]} 22. g5
{[%clk 0:01:50.7]} 22... Re6 {[%clk 0:02:01.8]} 23. h5 {[%clk 0:01:49.6]} 23...
Rae8 {[%clk 0:01:54.3]} 24. g6+ {[%clk 0:01:49.6]} 24... Kg8 {[%clk 0:01:55.5]}
25. gxf7+ {[%clk 0:01:43.8]} 25... Qxf7 {[%clk 0:01:56.5]} 26. h6 {[%clk
0:01:44.5]} 26... Rg6 {[%clk 0:01:47.9]} 27. Qh2 {[%clk 0:01:36.2]} 27... Rg2
{[%clk 0:01:44.9]} 28. h7+ {[%clk 0:01:03.3]} 28... Kh8 {[%clk 0:01:43.6]} 29.
d7 {[%clk 0:01:04]} 29... Rxe3+ {[%clk 0:01:42.8]} 30. Kd1 {[%clk 0:00:57.1]}
30... Re1+ {[%clk 0:01:34.8]} 31. Kc2 {[%clk 0:00:53.5]} 31... Qxf2+ {[%clk
0:01:30.3]} 32. Kc3 {[%clk 0:00:54.3]} 32... Qc2+ {[%clk 0:01:22.7]} 33. Kb4
{[%clk 0:00:54.1]} 33... Qc4# {[%clk 0:01:22.9]} 0-1

[Event "*** Titled Tuesday 3|2 Blitz"]
[Site "Chess.com"]
[Date "2016.03.01"]
[Round "5"]
[White "Goala"]
[Black "dretch"]
[Result "0-1"]
[WhiteElo "2251"]
[BlackElo "2556"]
[TimeControl "180+2"]
[EndTime "17:57:04 PST"]
[Termination "dretch won on time"]

1. d4 {[%clk 0:03:01.9]} 1... d5 {[%clk 0:03:01.1]} 2. c4 {[%clk 0:03:01]} 2...
c6 {[%clk 0:03:02.6]} 3. Nc3 {[%clk 0:03:02.3]} 3... dxc4 {[%clk 0:03:03.4]} 4.
e4 {[%clk 0:02:58.8]} 4... b5 {[%clk 0:03:04]} 5. a4 {[%clk 0:03:00.5]} 5... b4
{[%clk 0:03:04.9]} 6. Nce2 {[%clk 0:03:02.3]} 6... Ba6 {[%clk 0:03:04.6]} 7. Ng3
{[%clk 0:02:56.5]} 7... e5 {[%clk 0:03:00]} 8. Nf3 {[%clk 0:02:48.8]} 8... exd4
{[%clk 0:03:00.1]} 9. Nxd4 {[%clk 0:02:44.7]} 9... Bc5 {[%clk 0:02:54.8]} 10.
Be3 {[%clk 0:02:44.1]} 10... Nf6 {[%clk 0:02:53.3]} 11. Nxc6 {[%clk 0:02:28.5]}
11... Qxd1+ {[%clk 0:02:25.8]} 12. Rxd1 {[%clk 0:02:28.4]} 12... Nxc6 {[%clk
0:02:20.6]} 13. Bxc5 {[%clk 0:02:29]} 13... Nd7 {[%clk 0:02:20.6]} 14. Bd6
{[%clk 0:02:18.3]} 14... O-O-O {[%clk 0:02:21.2]} 15. Be2 {[%clk 0:02:10.7]}
15... Nb6 {[%clk 0:02:22]} 16. b3 {[%clk 0:01:46.3]} 16... Kb7 {[%clk
0:02:11.7]} 17. O-O {[%clk 0:01:19]} 17... cxb3 {[%clk 0:02:10.6]} 18. Bb5
{[%clk 0:01:09.3]} 18... Nc4 {[%clk 0:01:59.2]} 19. Bxc6+ {[%clk 0:00:52.5]}
19... Kxc6 {[%clk 0:01:59.7]} 20. Bxb4 {[%clk 0:00:53.7]} 20... Rxd1 {[%clk
0:01:56.6]} 21. Rxd1 {[%clk 0:00:54.3]} 21... Rb8 {[%clk 0:01:54.6]} 22. Bc3
{[%clk 0:00:48.9]} 22... b2 {[%clk 0:01:55.5]} 23. Bxb2 {[%clk 0:00:49.2]} 23...
Rxb2 {[%clk 0:01:50.8]} 24. Nf5 {[%clk 0:00:43.7]} 24... g6 {[%clk 0:01:47.5]}
25. Nh6 {[%clk 0:00:40.5]} 25... Rd2 {[%clk 0:01:37.3]} 26. Rc1 {[%clk
0:00:38.2]} 26... Rd7 {[%clk 0:01:37.4]} 27. h4 {[%clk 0:00:33.1]} 27... Kb6
{[%clk 0:01:36.1]} 28. Ng4 {[%clk 0:00:31.1]} 28... f5 {[%clk 0:01:33.5]} 29.
Nf6 {[%clk 0:00:31.3]} 29... Rf7 {[%clk 0:01:33]} 30. Nd5+ {[%clk 0:00:29.2]}
30... Ka5 {[%clk 0:01:34.1]} 31. e5 {[%clk 0:00:17.4]} 31... Nxe5 {[%clk
0:01:22.3]} 32. Rc5+ {[%clk 0:00:15.2]} 32... Kxa4 {[%clk 0:01:22.9]} 33. Nc7
{[%clk 0:00:13.5]} 33... Bb7 {[%clk 0:01:21.9]} 34. Ne6 {[%clk 0:00:05.2]} 34...
Nc6 {[%clk 0:01:17.9]} 35. Rc1 {[%clk 0:00:06]} 35... Ka3 {[%clk 0:01:17.4]} 36.
Rb1 {[%clk 0:00:07]} 36... Nb4 {[%clk 0:01:16.3]} 37. Nc5 {[%clk 0:00:07.5]}
37... Bd5 {[%clk 0:01:15]} 38. Kh2 {[%clk 0:00:04]} 38... a5 {[%clk 0:01:14.8]}
39. Kg3 {[%clk 0:00:05.5]} 39... Rc7 {[%clk 0:01:13.9]} 0-1

[Event "*** Titled Tuesday 3|2 Blitz"]
[Site "Chess.com"]
[Date "2016.03.01"]
[Round "5"]
[White "GrigorGrigorov"]
[Black "SenseiJulio"]
[Result "1-0"]
[WhiteElo "2539"]
[BlackElo "2598"]
[TimeControl "180+2"]
[EndTime "17:57:08 PST"]
[Termination "GrigorGrigorov won by resignation"]

1. d4 {[%clk 0:03:01.9]} 1... d5 {[%clk 0:03:00.8]} 2. Nf3 {[%clk 0:03:02.3]}
2... Nf6 {[%clk 0:02:59.6]} 3. c4 {[%clk 0:03:02.8]} 3... e6 {[%clk 0:03:01.1]}
4. e3 {[%clk 0:03:03.4]} 4... c5 {[%clk 0:02:58.5]} 5. cxd5 {[%clk 0:03:03.5]}
5... exd5 {[%clk 0:02:59.3]} 6. Bb5+ {[%clk 0:03:04.7]} 6... Nc6 {[%clk
0:02:59]} 7. O-O {[%clk 0:03:02.4]} 7... Bd6 {[%clk 0:02:58.5]} 8. dxc5 {[%clk
0:03:02.9]} 8... Bxc5 {[%clk 0:02:58]} 9. Nc3 {[%clk 0:03:04.3]} 9... O-O {[%clk
0:02:57.7]} 10. b3 {[%clk 0:03:02.6]} 10... Bg4 {[%clk 0:02:56.3]} 11. Bb2
{[%clk 0:03:02.1]} 11... a6 {[%clk 0:02:43.3]} 12. Bxc6 {[%clk 0:02:55.7]} 12...
bxc6 {[%clk 0:02:43.8]} 13. Rc1 {[%clk 0:02:56.9]} 13... Qd6 {[%clk 0:02:28.3]}
14. Ne2 {[%clk 0:02:50.8]} 14... Ne4 {[%clk 0:02:20.4]} 15. Qc2 {[%clk
0:02:31.5]} 15... Rac8 {[%clk 0:02:06.1]} 16. Ng3 {[%clk 0:02:27]} 16... Nxg3
{[%clk 0:01:49.8]} 17. hxg3 {[%clk 0:02:27.4]} 17... Ba7 {[%clk 0:01:40.1]} 18.
Ne5 {[%clk 0:02:16.9]} 18... Be6 {[%clk 0:01:39.6]} 19. Nd3 {[%clk 0:01:59.4]}
19... c5 {[%clk 0:01:35.7]} 20. Nf4 {[%clk 0:01:53.7]} 20... Rfd8 {[%clk
0:01:24.7]} 21. Rfd1 {[%clk 0:01:46.8]} 21... d4 {[%clk 0:01:12.4]} 22. Qe4
{[%clk 0:01:38.1]} 22... Bd7 {[%clk 0:00:55.8]} 23. b4 {[%clk 0:01:17.7]} 23...
cxb4 {[%clk 0:00:30.1]} 24. Rxc8 {[%clk 0:01:18.5]} 24... Rxc8 {[%clk
0:00:27.5]} 25. Bxd4 {[%clk 0:01:19]} 25... a5 {[%clk 0:00:17.1]} 26. Qb7 {[%clk
0:00:57.9]} 26... Bb8 {[%clk 0:00:13.6]} 27. Nd5 {[%clk 0:00:43.1]} 27... h6
{[%clk 0:00:11.7]} 28. Bb2 {[%clk 0:00:28.6]} 28... Re8 {[%clk 0:00:12.4]} 29.
Nf6+ {[%clk 0:00:27.6]} 29... Qxf6 {[%clk 0:00:11.2]} 30. Bxf6 {[%clk
0:00:27.7]} 30... Ba4 {[%clk 0:00:11.5]} 31. Rd8 {[%clk 0:00:26.8]} 1-0

[Event "*** Titled Tuesday 3|2 Blitz"]
[Site "Chess.com"]
[Date "2016.03.01"]
[Round "5"]
[White "Shivagami"]
[Black "Recombinant"]
[Result "0-1"]
[WhiteElo "1797"]
[BlackElo "2204"]
[TimeControl "180+2"]
[EndTime "17:57:31 PST"]
[Termination "Recombinant won by resignation"]

1. e4 {[%clk 0:01:50.9]} 1... d6 {[%clk 0:03:01.9]} 2. d4 {[%clk 0:01:50.7]}
2... Nf6 {[%clk 0:03:01.4]} 3. Nc3 {[%clk 0:01:50.3]} 3... g6 {[%clk 0:03:02.3]}
4. f4 {[%clk 0:01:50.8]} 4... Bg7 {[%clk 0:03:03.1]} 5. Nf3 {[%clk 0:01:52.3]}
5... c5 {[%clk 0:03:04]} 6. Bb5+ {[%clk 0:01:52.4]} 6... Bd7 {[%clk 0:03:04.8]}
7. Bxd7+ {[%clk 0:01:45.6]} 7... Nfxd7 {[%clk 0:03:04.1]} 8. O-O {[%clk
0:01:44.8]} 8... O-O {[%clk 0:03:02]} 9. Be3 {[%clk 0:01:41.7]} 9... Nc6 {[%clk
0:03:00.5]} 10. d5 {[%clk 0:01:33.2]} 10... Na5 {[%clk 0:03:01]} 11. Qe2 {[%clk
0:01:28.8]} 11... a6 {[%clk 0:02:56.4]} 12. e5 {[%clk 0:01:30]} 12... dxe5
{[%clk 0:02:53.4]} 13. fxe5 {[%clk 0:01:31.9]} 13... Nxe5 {[%clk 0:02:54.3]} 14.
Bxc5 {[%clk 0:01:32.6]} 14... Nxf3+ {[%clk 0:02:40.1]} 15. Rxf3 {[%clk
0:01:32.6]} 15... Bxc3 {[%clk 0:02:22.8]} 16. bxc3 {[%clk 0:01:25.5]} 16... Qxd5
{[%clk 0:02:22.4]} 17. Qxe7 {[%clk 0:01:18.9]} 17... Nc6 {[%clk 0:02:14.8]} 18.
Qd6 {[%clk 0:01:19.1]} 18... Rfd8 {[%clk 0:02:10]} 19. Qxd5 {[%clk 0:01:17.1]}
19... Rxd5 {[%clk 0:02:11.2]} 20. Be3 {[%clk 0:01:17.5]} 20... b5 {[%clk
0:02:09.8]} 21. Raf1 {[%clk 0:01:17.9]} 21... f5 {[%clk 0:02:09.1]} 22. h3
{[%clk 0:01:13.3]} 22... Ne5 {[%clk 0:02:08.1]} 23. R3f2 {[%clk 0:01:11.5]}
23... Nc4 {[%clk 0:02:08.8]} 24. Bd4 {[%clk 0:01:10.6]} 24... b4 {[%clk
0:02:04.5]} 25. Rf4 {[%clk 0:01:09.1]} 25... bxc3 {[%clk 0:01:59.9]} 26. Bxc3
{[%clk 0:01:09.1]} 26... Ne3 {[%clk 0:02:00.7]} 27. R1f2 {[%clk 0:01:07.9]}
27... Rc8 {[%clk 0:01:58.9]} 28. Bd4 {[%clk 0:00:46.1]} 28... Nxc2 {[%clk
0:01:55.8]} 29. Bb2 {[%clk 0:00:46.5]} 29... Ne3 {[%clk 0:01:54.3]} 30. R4f3
{[%clk 0:00:47.8]} 30... Nd1 {[%clk 0:01:55.2]} 31. Re2 {[%clk 0:00:47.4]} 31...
Nxb2 {[%clk 0:01:50.9]} 32. Rxb2 {[%clk 0:00:48.2]} 32... Rc6 {[%clk 0:01:48.9]}
33. Kh2 {[%clk 0:00:47.8]} 33... Kg7 {[%clk 0:01:48]} 34. Re3 {[%clk 0:00:47.9]}
34... Rd7 {[%clk 0:01:42]} 35. g3 {[%clk 0:00:46.5]} 35... Rcd6 {[%clk
0:01:41.5]} 36. Kg2 {[%clk 0:00:45.5]} 36... Rd2+ {[%clk 0:01:42.1]} 37. Rxd2
{[%clk 0:00:47.1]} 37... Rxd2+ {[%clk 0:01:42.6]} 38. Kf3 {[%clk 0:00:47.7]}
38... Rxa2 {[%clk 0:01:43.4]} 39. Re7+ {[%clk 0:00:48.1]} 39... Kh6 {[%clk
0:01:44.6]} 40. g4 {[%clk 0:00:47.8]} 40... Ra3+ {[%clk 0:01:43.5]} 41. Kg2
{[%clk 0:00:48.4]} 41... fxg4 {[%clk 0:01:43.8]} 42. hxg4 {[%clk 0:00:50.3]}
42... a5 {[%clk 0:01:43]} 43. Ra7 {[%clk 0:00:51.2]} 43... Kg5 {[%clk
0:01:41.6]} 44. Rxh7 {[%clk 0:00:49.8]} 44... Kxg4 {[%clk 0:01:42.6]} 45. Ra7
{[%clk 0:00:50.2]} 45... Ra2+ {[%clk 0:01:42.1]} 46. Kf1 {[%clk 0:00:50.3]}
46... g5 {[%clk 0:01:43.3]} 47. Ke1 {[%clk 0:00:50.1]} 47... Kg3 {[%clk
0:01:43.1]} 48. Rc7 {[%clk 0:00:50.6]} 48... Ra3 {[%clk 0:01:42]} 49. Rc5 {[%clk
0:00:51.1]} 49... g4 {[%clk 0:01:43.2]} 50. Rc4 {[%clk 0:00:52.1]} 50... Kh3
{[%clk 0:01:43.1]} 51. Rc8 {[%clk 0:00:52.1]} 51... g3 {[%clk 0:01:41.8]} 52.
Rh8+ {[%clk 0:00:51.5]} 52... Kg2 {[%clk 0:01:42.4]} 53. Rg8 {[%clk 0:00:50.4]}
53... Re3+ {[%clk 0:01:43.3]} 54. Kd2 {[%clk 0:00:51]} 54... Re5 {[%clk
0:01:45.2]} 55. Rf8 {[%clk 0:00:47.1]} 55... Kh2 {[%clk 0:01:45.9]} 56. Rh8+
{[%clk 0:00:47.2]} 56... Kg1 {[%clk 0:01:46.6]} 57. Rg8 {[%clk 0:00:48]} 57...
g2 {[%clk 0:01:47.3]} 58. Rg7 {[%clk 0:00:46.1]} 58... Kh2 {[%clk 0:01:48.2]}
59. Rh7+ {[%clk 0:00:47.2]} 59... Kg3 {[%clk 0:01:49.3]} 60. Rg7+ {[%clk
0:00:48.5]} 60... Kh3 {[%clk 0:01:50]} 61. Rh7+ {[%clk 0:00:49]} 61... Kg4
{[%clk 0:01:51.2]} 62. Rg7+ {[%clk 0:00:49.1]} 62... Rg5 {[%clk 0:01:52.3]} 0-1

[Event "*** Titled Tuesday 3|2 Blitz"]
[Site "Chess.com"]
[Date "2016.03.01"]
[Round "5"]
[White "Izoria123"]
[Black "MinhGTrAn"]
[Result "1-0"]
[WhiteElo "2592"]
[BlackElo "2668"]
[TimeControl "180+2"]
[EndTime "17:57:47 PST"]
[Termination "Izoria123 won by resignation"]

1. d4 {[%clk 0:02:48.6]} 1... Nf6 {[%clk 0:03:01]} 2. Bf4 {[%clk 0:02:48.3]}
2... e6 {[%clk 0:03:02.9]} 3. e3 {[%clk 0:02:48.3]} 3... c5 {[%clk 0:03:04]} 4.
Nd2 {[%clk 0:02:47.2]} 4... Nc6 {[%clk 0:03:04.6]} 5. c3 {[%clk 0:02:48.2]} 5...
d5 {[%clk 0:03:05.8]} 6. Ngf3 {[%clk 0:02:49.5]} 6... Bd6 {[%clk 0:03:07.2]} 7.
Bg3 {[%clk 0:02:50.8]} 7... O-O {[%clk 0:03:08.4]} 8. Bb5 {[%clk 0:02:51.5]}
8... Ne7 {[%clk 0:03:04.5]} 9. Bd3 {[%clk 0:02:44.6]} 9... Nf5 {[%clk
0:03:02.4]} 10. Bxf5 {[%clk 0:02:44.1]} 10... exf5 {[%clk 0:03:04.3]} 11. Bxd6
{[%clk 0:02:45.2]} 11... Qxd6 {[%clk 0:03:06.2]} 12. dxc5 {[%clk 0:02:46.7]}
12... Qxc5 {[%clk 0:03:08.1]} 13. O-O {[%clk 0:02:47.9]} 13... Be6 {[%clk
0:03:04.5]} 14. Nd4 {[%clk 0:02:43.5]} 14... g6 {[%clk 0:02:58.3]} 15. Qb3
{[%clk 0:02:41.4]} 15... Qc7 {[%clk 0:02:55.3]} 16. g3 {[%clk 0:02:41.7]} 16...
Rac8 {[%clk 0:02:50.7]} 17. Rfd1 {[%clk 0:02:41.2]} 17... Rfd8 {[%clk
0:02:50.9]} 18. N2f3 {[%clk 0:02:39.5]} 18... Ne4 {[%clk 0:02:48.9]} 19. Qa3
{[%clk 0:02:37.4]} 19... a6 {[%clk 0:02:49]} 20. Ne2 {[%clk 0:02:38]} 20... f4
{[%clk 0:02:38.9]} 21. Nxf4 {[%clk 0:02:30.1]} 21... Bg4 {[%clk 0:02:38.3]} 22.
Kg2 {[%clk 0:02:22.1]} 22... d4 {[%clk 0:01:40]} 23. Rxd4 {[%clk 0:01:54.1]}
23... Bxf3+ {[%clk 0:01:08.3]} 24. Kxf3 {[%clk 0:01:56]} 24... Qc6 {[%clk
0:01:09.9]} 25. Rxe4 {[%clk 0:01:07.7]} 25... Re8 {[%clk 0:00:53.7]} 26. Qa4
{[%clk 0:00:35.2]} 26... b5 {[%clk 0:00:54.2]} 27. Qd4 {[%clk 0:00:36.1]} 27...
f5 {[%clk 0:00:55.5]} 28. Rd1 {[%clk 0:00:21.6]} 28... Qxe4+ {[%clk 0:00:36.5]}
29. Qxe4 {[%clk 0:00:21.7]} 29... fxe4+ {[%clk 0:00:38.4]} 30. Ke2 {[%clk
0:00:23]} 30... Rcd8 {[%clk 0:00:39.9]} 31. Rd4 {[%clk 0:00:23.8]} 31... g5
{[%clk 0:00:25.9]} 32. Nd5 {[%clk 0:00:23.9]} 32... Kg7 {[%clk 0:00:24]} 33. Nc7
{[%clk 0:00:24.3]} 33... Rc8 {[%clk 0:00:13]} 34. Nxe8+ {[%clk 0:00:24.3]} 34...
Rxe8 {[%clk 0:00:14.9]} 35. Rd7+ {[%clk 0:00:23]} 35... Kg6 {[%clk 0:00:12.5]}
36. Rd6+ {[%clk 0:00:24.5]} 36... Kf5 {[%clk 0:00:13.8]} 37. Rxa6 {[%clk
0:00:24.4]} 37... h5 {[%clk 0:00:14.7]} 38. h3 {[%clk 0:00:25.1]} 38... h4
{[%clk 0:00:14.9]} 39. g4+ {[%clk 0:00:25.6]} 39... Ke5 {[%clk 0:00:16.6]} 40.
Ra5 {[%clk 0:00:26.9]} 40... Rd8 {[%clk 0:00:17.5]} 41. Rxb5+ {[%clk 0:00:27.6]}
1-0